fUSD/lending_fUSD_20240822
["ID","MTS","AMOUNT","RATE_DAILY","PERIOD"]
[335577084,1724338237536,-435.9,0.00010999,2]
[335577085,1724338237545,-500.0,0.00010999,2]
[335577086,1724338237555,-500.0,0.00010999,2]
[335577087,1724338237564,-500.0,0.00010999,2]
[335577088,1724338237576,-500.0,0.00010999,2]
[335577089,1724338237586,-500.0,0.00010999,2]
[335577090,1724338237595,-500.0,0.00010999,2]
[335577091,1724338237604,-500.0,0.00010999,2]
[335577092,1724338237614,-500.0,0.00010999,2]
[335577093,1724338237623,-500.0,0.00010999,2]
[335577094,1724338237632,-500.0,0.00010999,2]
[335577095,1724338237641,-500.0,0.00010999,2]
[335577096,1724338237651,-500.0,0.00010999,2]
[335577097,1724338237661,-500.0,0.00010999,2]
[335577098,1724338237674,-500.0,0.00010999,2]
[335577099,1724338237689,-500.0,0.00010999,2]
[335577100,1724338237698,-500.0,0.00010999,2]
[335577101,1724338237708,-306.06,0.00010999,2]
[335577102,1724338237717,-500.0,0.00010999,2]
[335577104,1724338237727,-500.0,0.00010999,2]
[335577106,1724338237736,-500.0,0.00010999,2]
[335577108,1724338237745,-500.0,0.00010999,2]
[335577109,1724338237755,-500.0,0.00010999,2]
[335577111,1724338237764,-500.0,0.00010999,2]
[335577112,1724338237774,-500.0,0.00010999,2]
[335577113,1724338237784,-500.0,0.00010999,2]
[335577114,1724338237793,-500.0,0.00010999,2]
[335577115,1724338237802,-500.0,0.00010999,2]
[335577117,1724338237811,-500.0,0.00010999,2]
[335577119,1724338237821,-500.0,0.00010999,2]
[335577120,1724338237830,-500.0,0.00010999,2]
[335577122,1724338237839,-500.0,0.00010999,2]
[335577123,1724338237848,-500.0,0.00010999,2]
[335577125,1724338237857,-500.0,0.00010999,2]
[335577126,1724338237867,-500.0,0.00010999,2]
[335577128,1724338237877,-500.0,0.00010999,2]
[335577130,1724338237886,-500.0,0.00010999,2]
[335577132,1724338237895,-159.3,0.00010999,2]
[335577134,1724338237904,-500.0,0.00010999,2]
[335577136,1724338237919,-500.0,0.00010999,2]
[335577138,1724338237929,-500.0,0.00010999,2]
[335577140,1724338237938,-500.0,0.00010999,2]
[335577142,1724338237947,-500.0,0.00010999,2]
[335577144,1724338237956,-500.0,0.00010999,2]
[335577146,1724338237965,-500.0,0.00010999,2]
[335577148,1724338237974,-500.0,0.00010999,2]
[335577150,1724338237983,-500.0,0.00010999,2]
[335577152,1724338237992,-500.0,0.00010999,2]
[335577154,1724338238001,-500.0,0.00010999,2]
[335577156,1724338238010,-500.0,0.00010999,2]
[335577157,1724338238019,-500.0,0.00010999,2]
[335577159,1724338238029,-500.0,0.00010999,2]
[335577161,1724338238038,-500.0,0.00010999,2]
[335577163,1724338238048,-285.79,0.00010999,2]
[335577165,1724338238057,-500.0,0.00010999,2]
[335577167,1724338238067,-500.0,0.00010999,2]
[335577169,1724338238076,-500.0,0.00010999,2]
[335577171,1724338238085,-500.0,0.00010999,2]
[335577173,1724338238094,-500.0,0.00010999,2]
[335577175,1724338238104,-500.0,0.00010999,2]
[335577177,1724338238113,-500.0,0.00010999,2]
[335577179,1724338238124,-500.0,0.00010999,2]
[335577181,1724338238134,-500.0,0.00010999,2]
[335577183,1724338238144,-500.0,0.00010999,2]
[335577185,1724338238154,-500.0,0.00010999,2]
[335577186,1724338238164,-500.0,0.00010999,2]
[335577187,1724338238183,-500.0,0.00010999,2]
[335577188,1724338238192,-500.0,0.00010999,2]
[335577189,1724338238201,-500.0,0.00010999,2]
[335577190,1724338238211,-500.0,0.00010999,2]
[335577191,1724338238220,-500.0,0.00010999,2]
[335577192,1724338238229,-175.97,0.00010999,2]
[335577193,1724338238239,-500.0,0.00010999,2]
[335577194,1724338238248,-500.0,0.00010999,2]
[335577195,1724338238258,-500.0,0.00010999,2]
[335577196,1724338238267,-500.0,0.00010999,2]
[335577197,1724338238276,-215.0573021,0.00010999,2]
[335577198,1724338238285,-500.0,0.00010999,2]
[335577199,1724338238294,-630.95,0.00010999,2]
[335577200,1724338238302,-500.0,0.00010999,2]
[335577201,1724338238312,-500.0,0.00010999,2]
[335577202,1724338238321,-500.0,0.00010999,2]
[335577203,1724338238330,-399.34,0.00010999,2]
[335577204,1724338238338,-500.0,0.00010999,2]
[335577205,1724338238348,-500.0,0.00010999,2]
[335577206,1724338238357,-500.0,0.00010999,2]
[335577207,1724338238366,-500.0,0.00010999,2]
[335577208,1724338238375,-500.0,0.00010999,2]
[335577209,1724338238384,-500.0,0.00010999,2]
[335577210,1724338238393,-500.0,0.00010999,2]
[335577211,1724338238403,-500.0,0.00010999,2]
[335577212,1724338238412,-500.0,0.00010999,2]
[335577213,1724338238424,-500.0,0.00010999,2]
[335577215,1724338238434,-500.0,0.00010999,2]
[335577217,1724338238444,-500.0,0.00010999,2]
[335577219,1724338238453,-500.0,0.00010999,2]
[335577221,1724338238463,-500.0,0.00010999,2]
[335577223,1724338238472,-500.0,0.00010999,2]
[335577225,1724338238481,-500.0,0.00010999,2]
[335577226,1724338238490,-500.0,0.00010999,2]
[335577228,1724338238499,-551.21697907,0.00010999,2]
[335577230,1724338238509,-500.0,0.00010999,2]
[335577232,1724338238518,-500.0,0.00010999,2]
[335577234,1724338238527,-500.0,0.00010999,2]
[335577236,1724338238536,-500.0,0.00010999,2]
[335577238,1724338238546,-544.15,0.00010999,2]
[335577240,1724338238555,-500.0,0.00010999,2]
[335577242,1724338238564,-500.0,0.00010999,2]
[335577244,1724338238575,-500.0,0.00010999,2]
[335577246,1724338238585,-500.0,0.00010999,2]
[335577248,1724338238594,-500.0,0.00010999,2]
[335577250,1724338238603,-500.0,0.00010999,2]
[335577252,1724338238613,-500.0,0.00010999,2]
[335577254,1724338238622,-500.0,0.00010999,2]
[335577256,1724338238631,-500.0,0.00010999,2]
[335577258,1724338238641,-500.0,0.00010999,2]
[335577260,1724338238650,-500.0,0.00010999,2]
[335577262,1724338238660,-500.0,0.00010999,2]
[335577264,1724338238670,-500.0,0.00010999,2]
[335577266,1724338238679,-500.0,0.00010999,2]
[335577268,1724338238689,-500.0,0.00010999,2]
[335577270,1724338238698,-500.0,0.00010999,2]
[335577272,1724338238707,-500.0,0.00010999,2]
[335577274,1724338238717,-500.0,0.00010999,2]
[335577276,1724338238727,-500.0,0.00010999,2]
[335577278,1724338238736,-213.84,0.00010999,2]
[335577280,1724338238745,-500.0,0.00010999,2]
[335577282,1724338238755,-500.0,0.00010999,2]
[335577284,1724338238764,-451.69,0.00010999,2]
[335577286,1724338238774,-500.0,0.00010999,2]
[335577287,1724338238783,-500.0,0.00010999,2]
[335577288,1724338238792,-500.0,0.00010999,2]
[335577289,1724338238802,-548.41595123,0.00010999,2]
[335577290,1724338238811,-500.0,0.00010999,2]
[335577291,1724338238821,-500.0,0.00010999,2]
[335577292,1724338238830,-500.0,0.00010999,2]
[335577293,1724338238839,-500.0,0.00010999,2]
[335577294,1724338238848,-500.0,0.00010999,2]
[335577295,1724338238857,-500.0,0.00010999,2]
[335577296,1724338238866,-500.0,0.00010999,2]
[335577297,1724338238875,-500.0,0.00010999,2]
[335577298,1724338238884,-500.0,0.00010999,2]
[335577299,1724338238893,-500.0,0.00010999,2]
[335577300,1724338238903,-533.76941082,0.00010999,2]
[335577301,1724338238913,-500.0,0.00010999,2]
[335577302,1724338238922,-500.0,0.00010999,2]
[335577303,1724338238931,-500.0,0.00010999,2]
[335577304,1724338238941,-500.0,0.00010999,2]
[335577305,1724338238951,-472.49983338,0.00010999,2]
[335577306,1724338238960,-205.57759256,0.00010999,2]
[335577307,1724338238970,-500.0,0.00010999,2]
[335577308,1724338238979,-500.0,0.00010999,2]
[335577309,1724338238989,-500.0,0.00010999,2]
[335577310,1724338238998,-500.0,0.00010999,2]
[335577311,1724338239007,-521.0,0.00011,2]
[335577312,1724338239017,-30790.53124329,0.00011,2]
[335577313,1724338239031,-1925.36,0.00011,2]
[335577314,1724338239042,-6067.2,0.00011,2]
[335577315,1724338239053,-48810.96921627,0.00011,2]
[335577316,1724338239062,-20296.67967717,0.00011,2]
[335577317,1724338239074,-345.44,0.00011,2]
[335577318,1724338239085,-30262.15251429,0.00011,2]
[335577319,1724338239096,-655.5,0.00011,2]
[335577322,1724338239542,-432.11378555,0.00011,2]
[335577323,1724338239583,-1121.2213578,0.00011,2]
[335577324,1724338239913,-33598.95918226,0.00011,2]
[335577325,1724338239925,-38721.42066455,0.00011,2]
[335577326,1724338239949,-478.75263346,0.00011,2]
[335577360,1724338242631,-403.1787819,0.00010999,2]
[335577361,1724338242641,-796.8212181,0.00011,2]
[335577378,1724338243321,-28842.03712146,0.00011,2]
[335577379,1724338243331,-500.57827625,0.00011,2]
[335577389,1724338245522,-1516.625,0.00011,2]
[335577390,1724338245793,-12011.80000001,0.00011,2]
[335577399,1724338321780,-570.08324671,9.962e-05,2]
[335577400,1724338321845,-155.0,9.962e-05,2]
[335577401,1724338322049,-298.82691546,9.962e-05,2]
[335577402,1724338322098,-179.41635732,9.962e-05,2]
[335577403,1724338322143,-460.14913543,9.962e-05,2]
[335577404,1724338322206,-300.0,9.961e-05,2]
[335577405,1724338322248,-63.24177651,9.962e-05,2]
[335577406,1724338322292,-155.0,9.962e-05,2]
[335577407,1724338324279,80.06275224,9.943e-05,2]
[335577408,1724338324324,522.96148033,9.943e-05,2]
[335577410,1724338511537,228.77402808,0.00027,120]
[335577411,1724338532553,376.28867597,0.00027,120]
[335577412,1724338674326,242.96512595,8.219e-05,2]
[335577413,1724338674356,92.96487405,8.219e-05,2]
[335577414,1724338754400,327.58,9.957e-05,2]
[335577415,1724338900366,200.0,9.961e-05,2]
[335577961,1724339174017,71.48916874,9.949e-05,2]
[335577962,1724339174049,657.65163791,9.949e-05,2]
[335577963,1724339174080,589.0798528,9.949e-05,2]
[335577964,1724339193112,-20984.15611251,0.00014567,15]
[335577965,1724339193184,-150.5,0.0001778,30]
[335577966,1724339193229,-150.5,0.0001779,30]
[335577967,1724339193274,-150.5,0.000178,30]
[335577968,1724339193317,-168.0,0.000178,30]
[335577969,1724339193373,-1440.24,0.000188,31]
[335577970,1724339193418,-1440.24,0.000188,31]
[335577971,1724339193464,-1440.24,0.000188,31]
[335577972,1724339193510,-1440.24,0.000188,31]
[335577973,1724339193554,-1440.24,0.000188,31]
[335577974,1724339193601,-1440.24,0.000188,31]
[335577975,1724339193647,-1440.24,0.000188,31]
[335577976,1724339193873,-1440.24,0.000188,31]
[335577977,1724339193925,-1440.24,0.000188,31]
[335577978,1724339193975,-1440.24,0.000188,31]
[335577979,1724339194024,-1440.24,0.000188,31]
[335577980,1724339194075,-1440.24,0.000188,31]
[335577981,1724339194121,-1440.24,0.000188,31]
[335577982,1724339194168,-1440.24,0.000188,31]
[335577983,1724339194217,-1440.24,0.000188,31]
[335577984,1724339194269,-1440.24,0.000188,31]
[335577985,1724339194324,-666.83451136,0.00020147,30]
[335577986,1724339194371,-325.24495676,0.00020919,40]
[335577987,1724339194416,-576.06,0.00021,10]
[335577988,1724339194460,-152.0,0.0002139,10]
[335577989,1724339194517,-152.0,0.00021835,11]
[335577990,1724339194561,-5000.0,0.000219,30]
[335577991,1724339194608,-1000.0,0.00021917,20]
[335577992,1724339194652,-1000.0,0.00021917,20]
[335577993,1724339194694,-1000.0,0.00021917,20]
[335577994,1724339194740,-1000.0,0.00021917,20]
[335577995,1724339194782,-1000.0,0.00021917,20]
[335577996,1724339194825,-1000.0,0.00021917,20]
[335577997,1724339194869,-1000.0,0.00021917,20]
[335577998,1724339194912,-1000.0,0.00021917,20]
[335577999,1724339194954,-1000.0,0.00021917,20]
[335578000,1724339194998,-1000.0,0.00021917,20]
[335578001,1724339195039,-1000.0,0.00021917,20]
[335578002,1724339195078,-1000.0,0.00021917,20]
[335578003,1724339195120,-1000.0,0.00021917,20]
[335578004,1724339195160,-1000.0,0.00021917,20]
[335578005,1724339195202,-1000.0,0.00021917,20]
[335578006,1724339195244,-1000.0,0.00021917,20]
[335578007,1724339195285,-1000.0,0.00021917,20]
[335578008,1724339195328,-1000.0,0.00021917,20]
[335578009,1724339195373,-1000.0,0.00021917,20]
[335578010,1724339195414,-1000.0,0.00021917,20]
[335578011,1724339195454,-1000.0,0.00021917,20]
[335578012,1724339195494,-526.32432012,0.00021917,20]
[335578013,1724339195542,-672.37088279,0.00021999,21]
[335578014,1724339195584,-152.0,0.00022279,12]
[335578015,1724339195624,-446.531032,0.000223,10]
[335578016,1724339195668,-2900.0,0.000225,15]
[335578017,1724339195714,-1440.24,0.000225,31]
[335578018,1724339195760,-1440.24,0.000225,31]
[335578019,1724339195803,-1440.24,0.000225,31]
[335578020,1724339195850,-1440.24,0.000225,31]
[335578021,1724339195899,-1440.24,0.000225,31]
[335578022,1724339195945,-1440.24,0.000225,31]
[335578023,1724339195989,-1440.24,0.000225,31]
[335578024,1724339196035,-1440.24,0.000225,31]
[335578025,1724339196080,-1440.24,0.000225,31]
[335578026,1724339196125,-1440.24,0.000225,31]
[335578027,1724339196168,-1440.24,0.000225,31]
[335578028,1724339196211,-1440.24,0.000225,31]
[335578029,1724339196255,-1440.24,0.000225,31]
[335578030,1724339196298,-1440.24,0.000225,31]
[335578031,1724339196341,-1440.24,0.000225,31]
[335578032,1724339196386,-1440.24,0.000225,31]
[335578033,1724339196430,-1440.24,0.000225,31]
[335578034,1724339196475,-1440.24,0.000225,31]
[335578035,1724339196519,-1440.24,0.000225,31]
[335578036,1724339196564,-1440.24,0.000225,31]
[335578037,1724339196607,-1440.24,0.000225,31]
[335578038,1724339196652,-1440.24,0.000225,31]
[335578039,1724339196697,-1440.24,0.000225,31]
[335578040,1724339196742,-1440.24,0.000225,31]
[335578041,1724339196784,-152.0,0.00022724,13]
[335578042,1724339196825,-320.0,0.00023,10]
[335578043,1724339196867,-152.0,0.00023168,14]
[335578044,1724339196908,-997904.67781652,0.000232,30]
[335578045,1724339196948,-152.0,0.00023613,15]
[335578046,1724339196989,-155.0,0.00024,15]
[335578047,1724339197029,-2404.12193508,0.00024,30]
[335578048,1724339197067,-860.57,0.00024,12]
[335578049,1724339197108,-1800.0,0.00024,25]
[335578050,1724339197150,-152.0,0.00024057,16]
[335578051,1724339197195,-152.0,0.00024502,17]
[335578052,1724339197240,-200000.0,0.000249,14]
[335578053,1724339197285,-152.0,0.00024946,18]
[335578054,1724339197332,-2326.15155444,0.00025,30]
[335578055,1724339197374,-2100.0,0.00025,30]
[335578056,1724339197414,-5519.92372609,0.00025,30]
[335578057,1724339197459,-620.0,0.00025,30]
[335578058,1724339197501,-1000.0,0.00025,12]
[335578059,1724339197559,-280.0,0.000253,10]
[335578060,1724339197600,-152.0,0.00025391,19]
[335578061,1724339197644,-152.0,0.00025835,20]
[335578062,1724339197690,-1440.24,0.000261,31]
[335578063,1724339197736,-1440.24,0.000261,31]
[335578064,1724339197780,-1440.24,0.000261,31]
[335578065,1724339197826,-1440.24,0.000261,31]
[335578066,1724339197871,-1440.24,0.000261,31]
[335578067,1724339197923,-1440.24,0.000261,31]
[335578068,1724339197968,-1440.24,0.000261,31]
[335578069,1724339198016,-1440.24,0.000261,31]
[335578070,1724339198192,-1440.24,0.000261,31]
[335578071,1724339198235,-1440.24,0.000261,31]
[335578072,1724339198279,-1440.24,0.000261,31]
[335578073,1724339198323,-1440.24,0.000261,31]
[335578074,1724339198369,-1440.24,0.000261,31]
[335578075,1724339198415,-1440.24,0.000261,31]
[335578076,1724339198459,-1440.24,0.000261,31]
[335578077,1724339198502,-1440.24,0.000261,31]
[335578078,1724339198545,-1440.24,0.000261,31]
[335578079,1724339198586,-1440.24,0.000261,31]
[335578080,1724339198627,-1440.24,0.000261,31]
[335578081,1724339198671,-1440.24,0.000261,31]
[335578082,1724339198718,-1440.24,0.000261,31]
[335578083,1724339198769,-1440.24,0.000261,31]
[335578084,1724339198814,-1440.24,0.000261,31]
[335578085,1724339198871,-1440.24,0.000261,31]
[335578086,1724339198924,-152.0,0.0002628,21]
[335578087,1724339198973,-331.30309929,0.00027002,120]
[335578088,1724339199016,-3151.65,0.00027068,30]
[335578089,1724339199057,-684.78264935,0.0002736,120]
[335578090,1724339199098,-590.38248096,0.0002739,10]
[335578091,1724339199138,-590.38248096,0.0002739,15]
[335578092,1724339199177,-590.38248096,0.0002739,20]
[335578093,1724339199220,-295.19124048,0.0002739,25]
[335578094,1724339199260,-295.19124048,0.0002739,30]
[335578095,1724339199301,-246.45,0.00027397,30]
[335578096,1724339199342,-2000.0,0.00027397,30]
[335578097,1724339199382,-2000.0,0.00027397,30]
[335578098,1724339199423,-2000.0,0.00027397,30]
[335578099,1724339199462,-2000.0,0.00027397,30]
[335578100,1724339199500,-2000.0,0.00027397,30]
[335578101,1724339199541,-2000.0,0.00027397,30]
[335578102,1724339199578,-2000.0,0.00027397,30]
[335578103,1724339199618,-2000.0,0.00027397,30]
[335578105,1724339199657,-2000.0,0.00027397,30]
[335578106,1724339199695,-2000.0,0.00027397,30]
[335578107,1724339199734,-2000.0,0.00027397,30]
[335578108,1724339199770,-2000.0,0.00027397,30]
[335578109,1724339199809,-2000.0,0.00027397,30]
[335578110,1724339199849,-2000.0,0.00027397,30]
[335578111,1724339199892,-2000.0,0.00027397,30]
[335578112,1724339199936,-2000.0,0.00027397,30]
[335578113,1724339199978,-2000.0,0.00027397,30]
[335578114,1724339200017,-2000.0,0.00027397,30]
[335578115,1724339200054,-2000.0,0.00027397,30]
[335578116,1724339200093,-950.56076696,0.00027397,30]
[335578117,1724339200131,-200.0,0.00027397,60]
[335578118,1724339200172,-2821.93,0.00027397,10]
[335578119,1724339200210,-2351.61,0.00027397,10]
[335578120,1724339200250,-1959.68,0.00027397,10]
[335578121,1724339200288,-1732.78,0.000274,30]
[335578122,1724339200326,-1732.78,0.000274,30]
[335578123,1724339200366,-1732.78,0.000274,30]
[335578124,1724339200404,-1732.78,0.000274,30]
[335578125,1724339200442,-1732.78,0.000274,30]
[335578126,1724339200482,-1732.78,0.000274,30]
[335578127,1724339200522,-1732.78,0.000274,30]
[335578128,1724339200561,-1732.78,0.000274,30]
[335578129,1724339200600,-1732.78,0.000274,30]
[335578130,1724339200638,-1732.78,0.000274,30]
[335578131,1724339200678,-5000.0,0.000274,30]
[335578132,1724339200719,-246.45,0.00027534,30]
[335578133,1724339200757,-246.45,0.00027671,30]
[335578134,1724339200808,-246.45,0.00027808,30]
[335578135,1724339200845,-391.0,0.0002783,15]
[335578136,1724339200885,-246.45,0.00027945,30]
[335578137,1724339200930,-246.45,0.00028082,30]
[335578138,1724339200972,-202.0,0.0002815,30]
[335578139,1724339201013,-246.45,0.00028219,30]
[335578140,1724339201057,-246.45,0.00028356,30]
[335578141,1724339201095,-246.45,0.00028493,30]
[335578142,1724339201136,-246.45,0.0002863,30]
[335578143,1724339201175,-246.45,0.00028767,30]
[335578144,1724339201214,-1345.06498879,0.00028767,120]
[335578145,1724339201254,-246.45,0.00028904,30]
[335578146,1724339201296,-2374.22673367,0.00029,120]
[335578147,1724339201339,-150.0,0.00029026,120]
[335578148,1724339201379,-246.45,0.00029041,30]
[335578149,1724339201421,-150.0,0.00029096,120]
[335578150,1724339201461,-246.45,0.00029178,30]
[335578151,1724339201503,-150.0,0.00029282,120]
[335578152,1724339201548,-202.0,0.0002931,30]
[335578153,1724339201587,-246.45,0.00029315,30]
[335578154,1724339201627,-246.45,0.00029452,30]
[335578155,1724339201668,-246.45,0.00029589,30]
[335578156,1724339201711,-1369.809881,0.000297,10]
[335578157,1724339201751,-1000.0,0.0002972,10]
[335578158,1724339201797,-246.45,0.00029726,30]
[335578159,1724339201839,-1000.0,0.0002974,10]
[335578160,1724339201906,-1000.0,0.0002976,10]
[335578161,1724339201945,-1000.0,0.0002978,10]
[335578162,1724339201991,-1440.24,0.000298,31]
[335578163,1724339202034,-1440.24,0.000298,31]
[335578164,1724339202080,-1440.24,0.000298,31]
[335578165,1724339202125,-1440.24,0.000298,31]
[335578166,1724339202169,-1440.24,0.000298,31]
[335578167,1724339202212,-1440.24,0.000298,31]
[335578168,1724339202258,-1440.24,0.000298,31]
[335578169,1724339202301,-1440.24,0.000298,31]
[335578170,1724339202346,-1440.24,0.000298,31]
[335578171,1724339202388,-1440.24,0.000298,31]
[335578172,1724339202565,-1440.24,0.000298,31]
[335578173,1724339202612,-1440.24,0.000298,31]
[335578174,1724339202656,-1440.24,0.000298,31]
[335578175,1724339202701,-1440.24,0.000298,31]
[335578176,1724339202748,-1440.24,0.000298,31]
[335578177,1724339202792,-1440.24,0.000298,31]
[335578178,1724339202839,-1440.24,0.000298,31]
[335578179,1724339202885,-1440.24,0.000298,31]
[335578180,1724339202934,-1440.24,0.000298,31]
[335578181,1724339202979,-1440.24,0.000298,31]
[335578182,1724339203026,-1440.24,0.000298,31]
[335578183,1724339203069,-1440.24,0.000298,31]
[335578184,1724339203115,-1440.24,0.000298,31]
[335578185,1724339203160,-1440.24,0.000298,31]
[335578186,1724339203199,-1000.0,0.000298,10]
[335578187,1724339203241,-1000.0,0.0002982,10]
[335578188,1724339203281,-1000.0,0.0002984,10]
[335578189,1724339203321,-1000.0,0.0002986,10]
[335578190,1724339203358,-246.45,0.00029863,30]
[335578191,1724339203396,-1000.0,0.0002988,10]
[335578192,1724339203435,-1000.0,0.000299,10]
[335578193,1724339203472,-1000.0,0.0002992,10]
[335578194,1724339203512,-1000.0,0.0002994,10]
[335578195,1724339203552,-1000.0,0.0002996,10]
[335578196,1724339203592,-1000.0,0.0002998,10]
[335578197,1724339203633,-1159.32314512,0.00029999,30]
[335578198,1724339203674,-246.45,0.00029999,30]
[335578199,1724339203718,-50000.0,0.0003,20]
[335578200,1724339203761,-515.10273767,0.0003,10]
[335578201,1724339203801,-658.28252835,0.0003,30]
[335578202,1724339203843,-151.0,0.0003,120]
[335578203,1724339203885,-151.0,0.0003,120]
[335578204,1724339203929,-1201.8042879,0.0003,10]
[335578205,1724339203971,-2000.0,0.0003,14]
[335578206,1724339204013,-446186.95241039,0.0003,30]
[335578207,1724339204511,337.07,8.219e-05,2]
[335578208,1724339213370,-666.83451136,0.00020144,30]
[335578209,1724339213470,-1633.06,0.00027397,10]
[335578210,1724339213539,-553813.04758961,0.0003,30]
[335578211,1724339213581,-1000000.0,0.0003,30]
[335578212,1724339213626,-1000.0,0.0003,11]
[335578213,1724339213673,-1000.0,0.0003002,11]
[335578214,1724339213713,-1000.0,0.0003004,11]
[335578215,1724339213756,-1000.0,0.0003006,11]
[335578216,1724339213797,-1000.0,0.0003008,11]
[335578217,1724339213839,-496.0,0.000301,14]
[335578218,1724339213880,-4961.0,0.000301,14]
[335578219,1724339213926,-193.0,0.000301,14]
[335578220,1724339213969,-644.0,0.000301,14]
[335578221,1724339214014,-644.0,0.000301,14]
[335578222,1724339214057,-4961.0,0.000301,14]
[335578223,1724339214100,-777.0,0.000301,14]
[335578224,1724339214141,-1000.0,0.000301,11]
[335578225,1724339214183,-246.45,0.00030136,30]
[335578226,1724339214224,-200.0,0.00030137,60]
[335578227,1724339214267,-150.0,0.00030219,120]
[335578228,1724339214312,-3151.65,0.0003023,30]
[335578229,1724339214351,-246.45,0.00030273,30]
[335578230,1724339214394,-246.45,0.0003041,30]
[335578231,1724339214434,-202.0,0.0003048,30]
[335578232,1724339214476,-420768.05789903,0.000305,30]
[335578241,1724339263893,-251.41,0.0001789,30]
[335578242,1724339263946,-666.83451136,0.00018,30]
[335578243,1724339263990,-411.12280201,0.00018232,15]
[335578244,1724339264035,-411.12280201,0.00018483,15]
[335578245,1724339264076,-411.12280201,0.00018684,15]
[335578246,1724339264119,-411.12280201,0.00018929,15]
[335578247,1724339264169,-411.12280201,0.00019285,15]
[335578248,1724339264210,-411.12280201,0.00019556,15]
[335578249,1724339264253,-411.12280201,0.00019976,15]
[335578250,1724339264297,-411.12280201,0.00020083,15]
[335578251,1724339264368,-155.0,0.00024,15]
[335578252,1724339264433,-945.06,0.00027397,10]
[335578253,1724339264473,-1203.38,0.00027397,10]
[335578254,1724339264551,-579231.94210097,0.000305,30]
[335578255,1724339264596,-1000000.0,0.000305,30]
[335578256,1724339264636,-246.46559666,0.00030547,30]
[335578257,1724339264678,-150.0,0.00030558,120]
[335578258,1724339264719,-548.0,0.00030613,30]
[335578259,1724339264757,-250.0,0.000308,30]
[335578260,1724339264798,-151.0,0.00030959,120]
[335578261,1724339264843,-50000.0,0.00031,21]
[335578262,1724339264887,-362911.92537493,0.00031,30]
[335578263,1724339271553,-411.12280201,0.00020327,15]
[335578264,1724339271603,-411.12280201,0.00020808,15]
[335578265,1724339271646,-411.12280201,0.00020898,15]
[335578266,1724339271691,-411.12280201,0.00021332,15]
[335578267,1724339271736,-411.12280201,0.00021453,15]
[335578268,1724339271782,-411.12280201,0.00021885,15]
[335578269,1724339271833,-411.12280201,0.00022061,15]
[335578270,1724339271877,-411.12280201,0.0002239,15]
[335578271,1724339271922,-411.12280201,0.00022656,15]
[335578272,1724339271966,-411.12280201,0.00022808,15]
[335578273,1724339272008,-411.12280201,0.00023239,15]
[335578274,1724339272050,-411.12280201,0.00023356,15]
[335578275,1724339272092,-411.12280201,0.00023826,15]
[335578276,1724339272132,-411.12280201,0.00023972,15]
[335578277,1724339272176,-411.12280201,0.00024128,15]
[335578278,1724339272217,-411.12280201,0.00024435,15]
[335578279,1724339272261,-411.12280201,0.00024714,15]